bitfinex/quotes_BTCUSD_20250617
["timestamp","ask_amount","ask_price","bid_price","bid_amount"]
[1750195388882,0.22205328,104520.0,104510.0,69.17695856]
[1750195390274,0.22205328,104520.0,104510.0,69.18652656]
[1750195390533,0.22205328,104520.0,104510.0,69.16739047]
[1750195391143,0.22205328,104520.0,104510.0,69.12435047]
[1750195391336,0.22205328,104520.0,104510.0,69.16739047]
[1750195391537,0.22205328,104520.0,104510.0,69.17695847]
[1750195392327,0.21248574,104520.0,104510.0,69.18652638]
[1750195393298,0.21248574,104520.0,104510.0,69.16739047]
[1750195393515,0.21248574,104520.0,104510.0,69.17695856]
[1750195393718,0.02113444,104520.0,104510.0,69.19609429]
[1750195393921,0.22205282,104520.0,104510.0,69.19609429]
[1750195394327,0.22205282,104520.0,104510.0,69.18652647]
[1750195394530,0.23162036,104520.0,104510.0,69.17695856]
[1750195394738,0.23162036,104520.0,104510.0,69.18652656]
[1750195395529,0.21248592,104520.0,104510.0,69.17695856]
[1750195395889,0.21248592,104520.0,104510.0,69.19609447]
[1750195396015,0.02113454,104520.0,104510.0,69.19609383]
[1750195396214,0.02113454,104520.0,104510.0,69.42597383]
[1750195396942,0.03070199,104520.0,104510.0,69.42597383]
[1750195397156,0.03070199,104520.0,104510.0,69.37597383]
[1750195397356,0.23162046,104520.0,104510.0,69.36640601]
[1750195398371,0.35156681,104520.0,104510.0,69.37597383]
[1750195398561,0.342,104520.0,104510.0,69.66707383]
[1750195398830,0.35156681,104520.0,104510.0,69.66707383]
[1750195399276,0.34956681,104520.0,104510.0,69.64807383]
[1750195399509,0.3591338,104520.0,104510.0,69.64807383]
[1750195399746,0.3611338,104520.0,104510.0,69.66707383]
[1750195399874,0.3611338,104520.0,104510.0,69.65507383]
[1750195400094,0.36970098,104520.0,104510.0,69.64807383]
[1750195400302,0.37926824,104520.0,104510.0,69.64807383]
[1750195400515,0.37926815,104520.0,104510.0,69.64807383]
[1750195400740,0.36970088,104520.0,104510.0,69.64807383]
[1750195401149,0.36970088,104520.0,104510.0,69.65507383]
[1750195401406,0.37926815,104520.0,104510.0,69.66107383]
[1750195401619,0.3601338,104520.0,104510.0,69.66107383]
[1750195401836,0.3601338,104520.0,104510.0,69.61803383]
[1750195402057,0.3601338,104520.0,104510.0,69.82167383]
[1750195402269,0.36970107,104520.0,104510.0,69.82167383]
[1750195402455,0.3601338,104520.0,104510.0,69.82167383]
[1750195403168,0.341,104520.0,104510.0,69.53057383]
[1750195403377,0.35056672,104520.0,104510.0,69.53057383]
[1750195403798,0.341,104520.0,104510.0,69.31736601]
[1750195403975,0.36970116,104520.0,104510.0,69.53053383]
[1750195404149,0.36013389,104520.0,104510.0,69.53053383]
[1750195404372,0.36970116,104520.0,104510.0,69.43438461]
[1750195405029,0.36970125,104520.0,104510.0,69.23078461]
[1750195405247,0.56105218,104520.0,104510.0,69.21164962]
[1750195405500,0.55148537,104520.0,104510.0,69.41524962]
[1750195405923,0.54191829,104520.0,104510.0,69.41524962]
[1750195406333,0.54191829,104520.0,104510.0,69.40568144]
[1750195406513,0.53235093,104520.0,104510.0,69.51139875]
[1750195407451,0.53235093,104520.0,104510.0,69.52096666]
[1750195408404,0.57062036,104520.0,104510.0,69.81206666]
[1750195408795,0.37926943,104520.0,104510.0,69.81206666]
[1750195409203,0.36970189,104520.0,104510.0,69.82163448]
[1750195409659,0.36013444,104520.0,104510.0,69.82163448]
[1750195410549,0.36013389,104520.0,104510.0,69.82163448]
[1750195410713,0.36970116,104520.0,104510.0,69.82163448]
[1750195410890,0.37926852,104520.0,104510.0,69.82163448]
[1750195411701,0.57061945,104520.0,104510.0,69.70634953]
[1750195411952,0.57061945,104520.0,104510.0,69.71591753]
[1750195412563,0.56105264,104520.0,104510.0,69.71591753]
[1750195413401,0.56105264,104520.0,104510.0,69.70634962]
[1750195413402,0.55148556,104520.0,104510.0,69.70634962]
[1750195413834,0.55148556,104520.0,104510.0,69.49318144]
[1750195414085,0.53235093,104520.0,104510.0,69.33524383]
[1750195414298,0.53235093,104520.0,104510.0,69.04414383]
[1750195414440,0.53235093,104520.0,104510.0,69.03457537]
[1750195415849,0.69295093,104520.0,104510.0,69.03457537]
[1750195417153,0.69295093,104520.0,104510.0,69.23551307]
[1750195417386,0.69295093,104520.0,104510.0,69.35079893]
[1750195417618,0.69295093,104520.0,104510.0,69.03457537]
[1750195419071,0.69295093,104520.0,104510.0,68.99157537]
[1750195419280,0.69295093,104520.0,104510.0,69.03457537]
[1750195421464,0.53235093,104520.0,104510.0,69.03457537]
[1750195421688,0.69291093,104520.0,104510.0,69.03457537]
[1750195423967,0.69291093,104520.0,104510.0,69.02857537]
[1750195424202,0.69291093,104520.0,104510.0,68.99847537]
[1750195424395,0.5204949,104520.0,104510.0,69.02457537]
[1750195424602,0.67953878,104520.0,104510.0,69.12072459]
[1750195425388,0.67953878,104520.0,104510.0,69.12272459]
[1750195427353,0.34676156,104520.0,104510.0,69.34279847]
[1750195427575,0.34676147,104520.0,104510.0,69.35236629]
[1750195427751,0.34676147,104520.0,104510.0,69.51292629]
[1750195428214,0.33719457,104520.0,104510.0,69.51292629]
[1750195428560,0.32762785,104520.0,104510.0,69.51292629]
[1750195429390,0.72057808,104540.0,104530.0,0.28930618]
[1750195429621,0.72057808,104540.0,104530.0,0.38554794]
[1750195429845,0.72057808,104540.0,104530.0,0.44610626]
[1750195430051,0.72057808,104540.0,104530.0,0.45567243]
[1750195430264,0.72057808,104540.0,104530.0,0.46523851]
[1750195430450,0.51969097,104540.0,104530.0,0.4748045]
[1750195430687,0.52925595,104540.0,104530.0,0.4748045]
[1750195430902,0.52925595,104540.0,104530.0,0.41424618]
[1750195431365,0.38026157,104540.0,104530.0,0.41424618]
[1750195431606,0.54082157,104540.0,104530.0,0.41424618]
[1750195431816,0.73213589,104540.0,104530.0,0.41424618]
[1750195432020,0.55038728,104540.0,104530.0,0.41424618]
[1750195432229,0.7417016,104540.0,104530.0,0.47480423]
[1750195432446,0.38982728,104540.0,104530.0,0.47480423]
[1750195432634,0.54082157,104540.0,104530.0,0.47480423]
[1750195432962,0.38026157,104540.0,104530.0,0.47480423]
[1750195433159,0.73213589,104540.0,104530.0,0.46523824]
[1750195433363,0.54838728,104540.0,104530.0,0.46523824]
[1750195433559,0.53882157,104540.0,104530.0,0.47880423]
[1750195433989,0.54838728,104540.0,104530.0,0.46923824]
[1750195434393,0.38782728,104540.0,104530.0,0.46923824]
[1750195434600,0.73013589,104540.0,104530.0,0.46923824]
[1750195434802,0.72057082,104540.0,104530.0,0.45967216]
[1750195435819,0.72057082,104540.0,104530.0,0.46923815]
[1750195436309,0.35913042,104540.0,104530.0,0.46923815]
[1750195436511,0.73013589,104540.0,104530.0,0.46923815]
[1750195436872,0.7397016,104540.0,104530.0,0.46923815]
[1750195438073,0.37826157,104540.0,104530.0,0.46923815]
[1750195438238,0.53882157,104540.0,104530.0,0.46923815]
[1750195438842,0.35913042,104540.0,104530.0,0.46923815]
[1750195439043,0.01912895,104550.0,104540.0,0.07834085]
[1750195439257,0.22955394,104550.0,104540.0,0.47587685]
[1750195439576,0.36869311,104550.0,104540.0,0.48305079]
[1750195439782,0.36869311,104550.0,104540.0,0.34135102]
[1750195440331,0.36869265,104550.0,104540.0,0.43859278]
[1750195440552,0.37825726,104550.0,104540.0,0.43859278]
[1750195440824,0.38782197,104550.0,104540.0,0.51955449]
[1750195441003,0.57911883,104550.0,104540.0,0.50998942]
[1750195441263,0.37825855,104550.0,104540.0,0.51955449]
[1750195441687,0.56955458,104550.0,104540.0,0.51955458]
[1750195441902,0.36869375,104550.0,104540.0,0.52911965]
[1750195442287,0.55998978,104550.0,104540.0,0.51955458]
[1750195442508,0.56955458,104550.0,104540.0,0.4290279]
[1750195442717,0.56955458,104550.0,104540.0,0.43759325]
[1750195443122,0.35912859,104550.0,104540.0,0.45872357]
[1750195443332,0.3686932,104550.0,104540.0,0.36248181]
[1750195443534,0.3686932,104550.0,104540.0,0.46072357]
[1750195443535,0.56955394,104550.0,104540.0,0.46072357]
[1750195443753,0.37825791,104550.0,104540.0,0.46072357]
[1750195443954,0.37825791,104550.0,104540.0,0.4511585]
[1750195444170,0.56955458,104550.0,104540.0,0.52189836]
[1750195444609,0.55999015,104550.0,104540.0,0.52189836]
[1750195444802,0.55999015,104550.0,104540.0,0.51233319]
[1750195444957,0.55042554,104550.0,104540.0,0.51233319]
[1750195445182,0.55042554,104550.0,104540.0,0.44159333]
[1750195445346,0.55042554,104550.0,104540.0,0.43202808]
[1750195445553,0.54086083,104550.0,104540.0,0.43202808]
[1750195446427,0.54086083,104550.0,104540.0,0.43202826]
[1750195446650,0.71399603,104550.0,104540.0,0.10024176]
[1750195446859,0.74599603,104550.0,104540.0,0.14324176]
[1750195447286,0.40599603,104550.0,104540.0,0.13924176]
[1750195447707,0.40599603,104550.0,104540.0,0.14024176]
[1750195449116,0.74599603,104550.0,104540.0,0.14024176]
[1750195450237,0.74599603,104550.0,104540.0,0.09724176]
[1750195450990,1.04599603,104550.0,104540.0,0.044]
[1750195451410,1.29599603,104550.0,104540.0,0.001]
[1750195451524,1.29599603,104550.0,104540.0,0.04396]
[1750195451933,1.29599603,104550.0,104540.0,0.04296]
[1750195452371,0.2009182,104520.0,104510.0,68.62225361]
[1750195452580,0.21048556,104520.0,104510.0,68.99129537]
[1750195452777,0.21048556,104520.0,104510.0,68.94833537]
[1750195452983,0.21048556,104520.0,104510.0,68.99129537]
[1750195453510,0.21048556,104520.0,104510.0,69.11834459]
[1750195453919,0.21048556,104520.0,104510.0,69.12234459]
[1750195454558,0.21048556,104520.0,104510.0,69.07938459]
[1750195454770,0.21048556,104520.0,104510.0,69.12238459]
[1750195455154,0.21048556,104520.0,104510.0,69.02623537]
[1750195455360,0.21048556,104520.0,104510.0,68.99533537]
[1750195455768,0.21048556,104520.0,104510.0,68.95233537]
[1750195455966,0.21048556,104520.0,104510.0,68.99533537]
[1750195457416,0.21048556,104520.0,104510.0,69.02783537]
[1750195458304,0.21048556,104520.0,104510.0,69.12398459]
[1750195458898,0.21048556,104520.0,104510.0,69.31535383]
[1750195459496,0.20091829,104520.0,104510.0,69.31535383]
[1750195459691,0.20091829,104520.0,104510.0,69.12398459]
[1750195461613,0.20091829,104520.0,104510.0,69.31535383]
[1750195461790,0.20091829,104520.0,104510.0,69.33449047]
[1750195461989,0.20091829,104520.0,104510.0,69.34405865]
[1750195462194,0.20091829,104520.0,104510.0,69.36319474]
[1750195462803,0.21048537,104520.0,104510.0,69.36319474]
[1750195463006,0.22962036,104520.0,104510.0,69.36319428]
[1750195463835,0.01913389,104520.0,104510.0,69.36319428]
[1750195464199,0.02870116,104520.0,104510.0,69.36319383]
[1750195464420,0.01913389,104520.0,104510.0,69.36319383]
[1750195464623,0.0191338,104520.0,104510.0,69.36319383]
[1750195464960,0.02870088,104520.0,104510.0,69.36319383]
[1750195465154,0.0191338,104520.0,104510.0,69.36319383]
[1750195465782,0.02870088,104520.0,104510.0,69.36319383]
[1750195466400,0.03826815,104520.0,104510.0,69.36319383]
[1750195466635,0.04783551,104520.0,104510.0,69.36319383]
[1750195467268,0.02870088,104520.0,104510.0,69.36319383]
[1750195467517,0.00956681,104520.0,104510.0,69.36319383]
[1750195467727,0.01913371,104520.0,104510.0,69.36319383]
[1750195468105,0.00956681,104520.0,104510.0,69.36319383]
[1750195468331,0.19131888,104540.0,104530.0,0.01454085]
[1750195468555,0.37826175,104540.0,104530.0,0.42651757]
[1750195468778,0.3686954,104540.0,104530.0,0.42412624]
[1750195469010,0.37098544,104550.0,104540.0,0.2484207]
[1750195469244,0.72054978,104550.0,104540.0,0.37766264]
[1750195469406,0.71098544,104550.0,104540.0,0.42035881]
[1750195469621,0.71098544,104550.0,104540.0,0.45305881]
[1750195469803,0.71098544,104550.0,104540.0,0.46262434]
[1750195470007,0.71098544,104550.0,104540.0,0.46462434]
[1750195470393,0.71098544,104550.0,104540.0,0.45505881]
[1750195471243,0.71098544,104550.0,104540.0,0.45705881]
[1750195471489,0.71098544,104550.0,104540.0,0.46662434]
[1750195471689,0.71098544,104550.0,104540.0,0.15778261]
[1750195474186,0.55042544,104550.0,104540.0,0.15778261]
[1750195474390,0.71098544,104550.0,104540.0,0.15778261]
[1750195478263,0.71098544,104550.0,104540.0,0.38762261]
[1750195480656,0.74378544,104550.0,104540.0,0.38762261]
[1750195482118,0.77568544,104550.0,104540.0,0.33008176]
[1750195482319,0.77568544,104550.0,104540.0,0.37304176]
[1750195482943,0.77568544,104550.0,104540.0,0.37104176]
[1750195483375,0.77668544,104550.0,104540.0,0.37104176]
[1750195483542,0.77668544,104550.0,104540.0,0.36904176]
[1750195485073,0.77668544,104550.0,104540.0,0.2728]
[1750195485074,1.12668544,104550.0,104540.0,0.2728]
[1750195485896,1.27668544,104550.0,104540.0,0.2728]
[1750195487621,1.27668544,104550.0,104540.0,0.27196]
[1750195489408,1.27668544,104550.0,104540.0,0.229]
[1750195489597,1.27668544,104550.0,104540.0,0.272]
[1750195492570,1.27668544,104550.0,104540.0,0.043]
[1750195493338,0.42386524,104530.0,104520.0,0.0762522]
[1750195493548,0.58438524,104530.0,104520.0,0.21549396]
[1750195494587,0.58438524,104530.0,104520.0,0.21849396]
[1750195495029,0.55398524,104530.0,104520.0,0.14224176]
[1750195496099,0.55398524,104530.0,104520.0,0.14624176]
[1750195496924,0.55398524,104530.0,104520.0,0.14224176]
[1750195497152,0.55398524,104530.0,104520.0,0.13924176]
[1750195497474,0.55398524,104530.0,104520.0,0.14224176]
[1750195500803,0.58428524,104530.0,104520.0,0.14224176]
[1750195501029,1.42428524,104530.0,104520.0,0.003]
[1750195501144,1.42428524,104530.0,104520.0,0.04596]
[1750195501565,1.42428524,104530.0,104520.0,0.04396]
[1750195502689,1.42428524,104530.0,104520.0,0.04296]
[1750195502913,1.42528524,104530.0,104520.0,0.04296]
[1750195503146,1.42428524,104530.0,104520.0,0.04296]
[1750195503544,1.42928524,104530.0,104520.0,0.04296]
[1750195504019,1.43128524,104530.0,104520.0,0.04296]
[1750195512397,0.54091829,104520.0,104510.0,68.80755276]
[1750195512619,0.73319829,104520.0,104510.0,68.85051276]
[1750195512825,0.76439829,104520.0,104510.0,68.85051276]
[1750195513039,0.79316029,104520.0,104510.0,68.85051276]
[1750195513452,0.79716029,104520.0,104510.0,68.85051276]
[1750195514075,0.79796029,104520.0,104510.0,68.57771276]
[1750195514289,1.04796029,104520.0,104510.0,68.62067276]
[1750195515336,1.04796029,104520.0,104510.0,68.57771276]
[1750195515538,1.04796029,104520.0,104510.0,68.62067276]
[1750195518327,1.04796029,104520.0,104510.0,68.57771276]
[1750195518528,1.04796029,104520.0,104510.0,68.62067276]
[1750195523433,1.17562667,104520.0,104510.0,68.62067276]
[1750195524267,1.17462667,104520.0,104510.0,68.62067276]
[1750195524469,1.20187647,104520.0,104510.0,68.62067276]
[1750195524719,1.20387647,104520.0,104510.0,68.62067276]
[1750195524926,1.20087647,104520.0,104510.0,68.62067276]
[1750195525105,1.19887647,104520.0,104510.0,68.62067276]
[1750195525406,1.17462667,104520.0,104510.0,68.62067276]
[1750195525813,1.18062667,104520.0,104510.0,68.62067276]
[1750195526025,1.17762667,104520.0,104510.0,68.62067276]
[1750195526274,1.18162667,104520.0,104510.0,68.62067276]
[1750195528710,6.23162667,104520.0,104510.0,68.62067276]
[1750195528914,6.25887647,104520.0,104510.0,68.62067276]
[1750195533209,6.25887647,104520.0,104510.0,68.62067276]
[1750195534720,6.25887647,104520.0,104510.0,68.57771276]
[1750195538293,1.02114667,104520.0,104510.0,68.57771276]
[1750195538500,1.15016205,104520.0,104510.0,68.57771276]
[1750195540448,0.98972205,104520.0,104510.0,68.57771276]
[1750195540653,1.11812205,104520.0,104510.0,68.57771276]
[1750195542425,1.08632205,104520.0,104510.0,68.57771276]
[1750195545863,1.11732205,104520.0,104510.0,68.57771276]
[1750195546065,1.14902205,104520.0,104510.0,68.57771276]
[1750195546853,1.11732205,104520.0,104510.0,68.57771276]
[1750195547260,0.95692205,104520.0,104510.0,68.57771276]
[1750195547463,1.11732205,104520.0,104510.0,68.57771276]
[1750195548239,1.11732205,104520.0,104510.0,68.61091276]
[1750195548240,0.82968029,104520.0,104510.0,68.61091276]
[1750195548442,0.99008029,104520.0,104510.0,68.61091276]
[1750195548844,0.99008029,104520.0,104510.0,68.64261276]
[1750195549055,0.98008029,104520.0,104510.0,68.64261276]
[1750195549264,0.98008029,104520.0,104510.0,68.68553276]
[1750195549265,0.98508029,104520.0,104510.0,68.68553276]
[1750195552906,0.98508029,104520.0,104510.0,68.68533382]
[1750195555290,0.98508029,104520.0,104510.0,68.68369382]
[1750195557325,0.82468029,104520.0,104510.0,68.68369382]
[1750195557462,0.98504029,104520.0,104510.0,68.68369382]
[1750195558629,0.53468029,104520.0,104510.0,68.68369382]
[1750195558838,0.54500029,104520.0,104510.0,68.77993558]
[1750195559050,0.38468029,104520.0,104510.0,68.77993558]
[1750195559259,0.72468029,104520.0,104510.0,68.77993558]
[1750195559473,0.88500029,104520.0,104510.0,68.77993558]
[1750195559677,0.54000029,104520.0,104510.0,68.77993558]
[1750195559904,0.54100029,104520.0,104510.0,68.77993558]
[1750195560226,0.38168029,104520.0,104510.0,68.89062565]
[1750195560428,0.38168029,104520.0,104510.0,68.99541394]
[1750195560429,0.36248556,104520.0,104510.0,68.99541394]
[1750195560637,0.3823731,104520.0,104510.0,69.00498194]
[1750195560847,0.7223731,104520.0,104510.0,69.01454976]
[1750195561078,0.18145463,104520.0,104510.0,69.01454976]
[1750195561269,0.02013426,104520.0,104510.0,69.11069898]
[1750195561394,0.20090029,104530.0,104520.0,0.22005273]
[1750195561625,0.00956644,104530.0,104520.0,0.62002139]
[1750195561824,0.16988644,104530.0,104520.0,0.62002139]
[1750195562291,0.32962047,104540.0,104530.0,0.20587348]
[1750195562483,0.48994047,104540.0,104530.0,0.37688187]
[1750195562917,0.82994047,104540.0,104530.0,0.37688187]
[1750195563175,0.48994047,104540.0,104530.0,0.43055506]
[1750195563333,0.82994047,104540.0,104530.0,0.23922243]
[1750195563534,0.82994047,104540.0,104530.0,0.2296558]
[1750195563989,0.82994047,104540.0,104530.0,0.2326558]
[1750195564187,0.66962047,104540.0,104530.0,0.2326558]
[1750195564391,0.82990047,104540.0,104530.0,0.2326558]
[1750195564809,0.82990047,104540.0,104530.0,0.2336558]
[1750195565158,0.66962047,104540.0,104530.0,0.2336558]
[1750195565363,0.66962047,104540.0,104530.0,0.43455497]
[1750195565570,0.83946609,104540.0,104530.0,0.4536874]
[1750195565774,0.84903144,104540.0,104530.0,0.17998261]
[1750195567027,0.84899144,104540.0,104530.0,0.37131524]
[1750195567198,0.84899144,104540.0,104530.0,0.38088187]
[1750195567824,0.84899144,104540.0,104530.0,0.18954924]
[1750195568183,0.71070189,104540.0,104530.0,0.17998261]
[1750195569504,0.71070189,104540.0,104530.0,0.24202541]
[1750195570385,0.71070189,104540.0,104530.0,0.17998261]
[1750195571150,0.71066189,104540.0,104530.0,0.17998261]
[1750195574245,0.51933097,104540.0,104530.0,0.17998261]
[1750195574447,0.71067328,104540.0,104530.0,0.17998261]
[1750195574986,0.71067328,104540.0,104530.0,0.38088187]
[1750195575187,0.70110793,104540.0,104530.0,0.46492793]
[1750195576076,0.70110793,104540.0,104530.0,0.2735953]
[1750195576506,0.70110793,104540.0,104530.0,0.26402867]
[1750195577108,0.70110793,104540.0,104530.0,0.20824176]
[1750195577359,0.70110793,104540.0,104530.0,0.22278261]
[1750195577906,1.18613255,104540.0,104530.0,0.004]
[1750195578119,1.34629255,104540.0,104530.0,0.004]
[1750195578326,1.31486793,104540.0,104530.0,0.004]
[1750195578777,0.92319907,104530.0,104520.0,0.0428]
[1750195579357,0.54091829,104520.0,104510.0,68.57587382]
[1750195579677,1.00103829,104520.0,104510.0,68.61867382]
[1750195579899,1.00103829,104520.0,104510.0,68.57587382]
[1750195580106,1.28333829,104520.0,104510.0,68.57587382]
[1750195580266,1.31483829,104520.0,104510.0,68.61867382]
[1750195580466,1.31483829,104520.0,104510.0,68.57587382]
[1750195580670,1.31483829,104520.0,104510.0,68.61867382]
[1750195580876,1.31483829,104520.0,104510.0,68.61967382]
[1750195581289,1.31483829,104520.0,104510.0,68.61867382]
[1750195581697,1.31583829,104520.0,104510.0,68.61867382]
[1750195582700,1.31583829,104520.0,104510.0,68.62267382]
[1750195583196,1.31583829,104520.0,104510.0,68.61867382]
[1750195583426,1.31683829,104520.0,104510.0,68.61867382]
[1750195584693,1.31683829,104520.0,104510.0,68.60867382]
[1750195586921,1.28533829,104520.0,104510.0,68.60867382]
[1750195587359,0.69291829,104520.0,104510.0,68.8636648]
[1750195587549,0.85307829,104520.0,104510.0,68.8636648]
[1750195587756,0.51307829,104520.0,104510.0,68.8636648]
[1750195588427,0.85307829,104520.0,104510.0,68.76751558]
[1750195588633,0.85207829,104520.0,104510.0,68.76751558]
[1750195588834,0.35191829,104520.0,104510.0,68.78305643]
[1750195589034,0.51207829,104520.0,104510.0,68.78305643]
[1750195589392,0.85107829,104520.0,104510.0,68.87920565]
[1750195589588,0.87983629,104520.0,104510.0,68.87920565]
[1750195589895,0.85107829,104520.0,104510.0,68.87820565]
[1750195590093,0.85107829,104520.0,104510.0,69.07357489]
[1750195590303,0.86064556,104520.0,104510.0,69.07357489]
[1750195590535,0.86064556,104520.0,104510.0,69.08314335]
[1750195591316,0.86064556,104520.0,104510.0,69.08414335]
[1750195592072,0.86064556,104520.0,104510.0,69.09371172]
[1750195592538,0.86060556,104520.0,104510.0,69.09371172]
[1750195592945,0.86060556,104520.0,104510.0,69.08414335]
[1750195593159,0.86060556,104520.0,104510.0,69.09371172]
[1750195593778,0.86060556,104520.0,104510.0,68.88320565]
[1750195593995,0.85103829,104520.0,104510.0,68.88320565]
[1750195596019,0.85103829,104520.0,104510.0,68.84040565]
[1750195596230,0.85103829,104520.0,104510.0,68.88312565]
[1750195599253,0.22009388,104530.0,104520.0,0.07974085]
[1750195599494,0.0478897,104530.0,104520.0,0.27452332]
[1750195599689,0.23922233,104530.0,104520.0,0.43225183]
[1750195599919,0.57922233,104530.0,104520.0,0.43075183]
[1750195600156,0.55046533,104530.0,104520.0,0.43075183]
[1750195600335,0.55046533,104530.0,104520.0,0.6316703]
[1750195600530,0.55046533,104530.0,104520.0,0.64123775]
[1750195601191,0.55046533,104530.0,104520.0,0.66037238]
[1750195601882,0.55046533,104530.0,104520.0,0.50981956]
[1750195602125,0.55046533,104530.0,104520.0,0.51181956]
[1750195602536,0.55046533,104530.0,104520.0,0.51181864]
[1750195603346,0.55046533,104530.0,104520.0,0.51381864]
[1750195603673,0.34,104530.0,104520.0,0.51381818]
[1750195608125,0.3686932,104550.0,104540.0,0.29865167]
[1750195608341,0.53833791,104550.0,104540.0,0.67705859]
[1750195608491,0.53833791,104550.0,104540.0,0.66749343]
[1750195608699,0.73919874,104550.0,104540.0,0.67705868]
[1750195608919,0.72963458,104550.0,104540.0,0.66749343]
[1750195609126,0.72963458,104550.0,104540.0,0.67705868]
[1750195609726,0.72963458,104550.0,104540.0,0.66749343]
[1750195609953,0.72007015,104550.0,104540.0,0.65792808]
[1750195610175,0.72007015,104550.0,104540.0,0.66749343]
[1750195610765,0.72007015,104550.0,104540.0,0.64836264]
[1750195610971,0.71050554,104550.0,104540.0,0.65892808]
[1750195611353,0.71050554,104550.0,104540.0,0.66092808]
[1750195611559,0.71050554,104550.0,104540.0,0.75667434]
[1750195611829,0.71050554,104550.0,104540.0,0.74710909]
[1750195612041,0.71050554,104550.0,104540.0,0.75667444]
[1750195612870,0.71050554,104550.0,104540.0,0.76623969]
[1750195613085,0.71050554,104550.0,104540.0,0.66092808]
[1750195613287,0.71050554,104550.0,104540.0,0.67049379]
[1750195614087,0.71050554,104550.0,104540.0,0.66092826]
[1750195614283,0.71050554,104550.0,104540.0,0.67049379]
[1750195615696,0.71050554,104550.0,104540.0,0.66092826]
[1750195615934,0.70094083,104550.0,104540.0,0.66092826]
[1750195616356,0.70090083,104550.0,104540.0,0.75667482]
[1750195616605,0.70090083,104550.0,104540.0,0.76624026]
[1750195616808,0.70090083,104550.0,104540.0,0.77580561]
[1750195617265,0.70090083,104550.0,104540.0,0.77480561]
[1750195617407,0.70090083,104550.0,104540.0,0.77280561]
[1750195617611,0.70090083,104550.0,104540.0,0.77480561]
[1750195618023,0.34,104550.0,104540.0,0.77480497]
[1750195618240,0.34,104550.0,104540.0,0.77680497]
[1750195618847,0.1982937,104560.0,104550.0,0.29843018]
[1750195619060,0.18873009,104560.0,104550.0,0.48150595]
[1750195619272,0.36869009,104560.0,104550.0,0.48150595]
[1750195619676,0.52873009,104560.0,104550.0,0.48150595]
[1750195620147,0.51925712,104560.0,104550.0,0.48150595]
[1750195620361,0.52882064,104560.0,104550.0,0.48150595]
[1750195620784,0.52882064,104560.0,104550.0,0.48250595]
[1750195620996,0.52882064,104560.0,104550.0,0.48350595]
[1750195620997,0.34009064,104560.0,104550.0,0.48350595]
[1750195621417,0.50013064,104560.0,104550.0,0.48350595]
[1750195622065,9.064e-05,104560.0,104550.0,0.64154595]
[1750195622285,9.064e-05,104560.0,104550.0,1.10372802]
[1750195622496,9.064e-05,104560.0,104550.0,1.10672802]
[1750195623536,9.064e-05,104560.0,104550.0,1.11072802]
[1750195623735,9.064e-05,104560.0,104550.0,1.10772802]
[1750195623901,9.064e-05,104560.0,104550.0,0.69554595]
[1750195624268,9.064e-05,104560.0,104550.0,1.11172802]
[1750195624477,9.064e-05,104560.0,104550.0,1.10772802]
[1750195624699,9.064e-05,104560.0,104550.0,1.11372802]
[1750195625050,9.064e-05,104560.0,104550.0,0.70154595]
[1750195625451,9.064e-05,104560.0,104550.0,1.11372802]
[1750195627578,9.064e-05,104560.0,104550.0,0.95368802]
[1750195627779,9.064e-05,104560.0,104550.0,1.15636802]
[1750195631026,9.064e-05,104560.0,104550.0,1.18545722]
[1750195631834,9.064e-05,104560.0,104550.0,1.59763929]
[1750195632036,9.064e-05,104560.0,104550.0,1.93873929]
[1750195632450,9.064e-05,104560.0,104550.0,1.64763929]
[1750195633188,9.064e-05,104560.0,104550.0,1.98763929]
[1750195633400,0.02867656,104610.0,104600.0,0.234425]
[1750195633608,0.2077539,104610.0,104600.0,0.65936137]
[1750195633812,0.5478447,104610.0,104600.0,0.65936137]
[1750195634004,0.02876681,104610.0,104600.0,0.65936137]
[1750195634230,0.37832566,104610.0,104600.0,0.65936137]
[1750195634418,0.38788479,104610.0,104600.0,0.65936137]
[1750195634628,0.38788479,104610.0,104600.0,0.66236137]
[1750195634835,0.37832566,104610.0,104600.0,0.66236137]
[1750195635055,0.38788461,104610.0,104600.0,0.69896137]
[1750195635241,0.36876708,104610.0,104600.0,0.69896137]
[1750195635448,0.3400908,104610.0,104600.0,0.69896137]
[1750195635698,0.35920823,104610.0,104600.0,0.69896137]
[1750195635912,0.34964947,104610.0,104600.0,0.69896137]
[1750195636136,0.3400908,104610.0,104600.0,0.69896137]
[1750195636765,9.08e-05,104610.0,104600.0,0.69896137]
[1750195636950,9.08e-05,104610.0,104600.0,1.11114344]
[1750195638217,9.08e-05,104610.0,104600.0,0.69896137]
[1750195638420,9.08e-05,104610.0,104600.0,0.72535975]
[1750195638621,0.37018523,104630.0,104620.0,0.22482503]
[1750195638824,0.38929974,104630.0,104620.0,0.36553388]
[1750195639441,0.21026541,104630.0,104620.0,0.35597613]
[1750195639649,0.21026541,104630.0,104620.0,0.36553434]
[1750195639865,0.23470802,104630.0,104620.0,0.36553434]
[1750195640522,0.22515054,104630.0,104620.0,0.35597613]
[1750195640743,0.22515054,104630.0,104620.0,0.36553444]
[1750195641189,0.22715054,104630.0,104620.0,0.36553444]
[1750195641398,0.22715054,104630.0,104620.0,0.35597613]
[1750195641615,0.22715054,104630.0,104620.0,0.36553434]
[1750195641850,0.22715054,104630.0,104620.0,0.1648081]
[1750195642061,0.22715054,104630.0,104620.0,0.35597613]
[1750195642473,0.22715054,104630.0,104620.0,0.36553444]
[1750195642675,0.22715054,104630.0,104620.0,0.35597613]
[1750195642884,0.22715054,104630.0,104620.0,0.37509265]
[1750195643455,0.22715054,104630.0,104620.0,0.35597613]
[1750195643676,0.22715054,104630.0,104620.0,0.36553444]
[1750195644073,0.22715054,104630.0,104620.0,0.1552497]
[1750195644857,0.22715054,104630.0,104620.0,0.34641773]
[1750195645241,0.22715054,104630.0,104620.0,0.35597613]
[1750195645454,0.22715054,104630.0,104620.0,0.36553444]
[1750195645688,0.22615054,104630.0,104620.0,0.36553444]
[1750195646094,0.22615054,104630.0,104620.0,0.36653444]
[1750195646667,0.22415054,104630.0,104620.0,0.1562497]
[1750195652390,0.22415054,104630.0,104620.0,0.1988497]
[1750195652586,0.38399054,104630.0,104620.0,0.1988497]
[1750195654975,0.22415054,104630.0,104620.0,0.39001773]
[1750195655194,0.35099054,104630.0,104620.0,0.39001773]
[1750195655399,0.35099054,104630.0,104620.0,0.1988497]
[1750195655796,0.35099054,104630.0,104620.0,0.39957594]
[1750195656003,0.35099054,104630.0,104620.0,0.2295497]
[1750195656198,0.19115054,104630.0,104620.0,0.40913425]
[1750195656378,0.35099054,104630.0,104620.0,0.40913425]
[1750195656855,0.71423575,104640.0,104630.0,0.01454085]
[1750195657100,0.87455011,104640.0,104630.0,0.15902182]
[1750195657773,0.87455011,104640.0,104630.0,0.11078261]
[1750195658227,0.87655011,104640.0,104630.0,0.11078261]
[1750195658761,0.71771011,104640.0,104630.0,0.11078261]
[1750195658955,0.87755011,104640.0,104630.0,0.11078261]
[1750195662113,0.71771011,104640.0,104630.0,0.11078261]
[1750195662323,0.68471011,104640.0,104630.0,0.62448062]
[1750195662522,0.84451011,104640.0,104630.0,0.62448062]